[Event "FRA-ch Youth U12 2018"]
[Site "Agen"]
[Date "2018.04.20"]
[Round "7"]
[White "Maurizzi, Marc Andria"]
[Black "Makkar, Rajat"]
[Result "1-0"]
[ECO "C42"]
[WhiteElo "2119"]
[BlackElo "1813"]
[Annotator "NA"]
[PlyCount "111"]
[EventDate "2018.??.??"]
[EventType "swiss"]
[EventCountry "FRA"]
[SourceTitle "playchess.com"]
[Source "ChessBase"]
[SourceQuality "1"]
[TimeControl "5400+30"]

1. e4 {[%emt 0:00:00]} e5 {[%emt 0:00:16]} 2. Nf3 {[%emt 0:00:00]} Nf6 {[%emt 0:00:09]} 3. Nxe5 {[%emt 0:00:00]} d6 {[%emt 0:00:12]} 4. Nf3 {[%emt 0:00:04]} Nxe4 {[%emt 0:00:08]} 5. d3 {[%emt 0:00:06]} Nf6 {[%emt 0:00:22]} 6. d4 {[%emt 0:00:01]} Be7 {[%emt 0:01:16]} 7. Bd3 {[%emt 0:01:09]} O-O {[%emt 0:00:55] C42: Petroff Defence: 3 Nxe5 and unusual White 3rd moves} 8. h3 {[%emt 0:01:44]} c5 {[%emt 0:02:44]} 9. O-O {[%emt 0:01:48]} Nc6 {[%emt 0:00:33]} 10. Nbd2 $146 {[%emt 0:06:54]} ({Predecessor:} 10. Nc3 h6 11. Bf4 Nb4 12. Re1 Re8 13. Bf1 Bf5 14. Rc1 Bf8 15. Rxe8 Qxe8 {½-½ (75) Kasimdzhanov,R (2683)-Yu,Y (2751) Riadh 2017}) 10... Nb4 {[%emt 0:02:55]} 11. Ne4 {[%emt 0:14:55]} Nxe4 {[%emt 0:03:02]} 12. Bxe4 {[%emt 0:00:08]} d5 {[%emt 0:00:07]} 13. Bd3 {[%emt 0:00:14]} c4 {[%emt 0:01:17]} 14. Be2 {[%emt 0:00:53]} Bf5 {[%emt 0:00:12]} 15. Ne1 {[%emt 0:02:35]} b5 {[%emt 0:08:52]} 16. c3 {[%emt 0:03:31]} Nc6 {[%emt 0:00:46]} 17. Nc2 {[%emt 0:01:15]} Bg5 {[%emt 0:05:16]} 18. a4 {[%emt 0:06:37]} Bxc1 {[%emt 0:03:45]} 19. Qxc1 {[%emt 0:00:26]} Na5 {[%emt 0:00:19]} 20. Nb4 {[%emt 0:03:32]} Nb3 {[%emt 0:05:08]} 21. Qf4 $11 {[%emt 0:00:22]} a5 {[%emt 0:01:17]} 22. Nc6 {[%emt 0:15:57]} Qf6 {[%emt 0:01:36]} 23. axb5 {[%emt 0:11:17]} Nxa1 {[%emt 0:03:25]} 24. Rxa1 {[%emt 0:01:42]} Rfe8 {[%emt 0:00:49]} 25. Bf3 {[%emt 0:00:19]} g5 {[%emt 0:12:26]} 26. Qc7 {[%emt 0:03:53]} Be4 {[%emt 0:05:54]} 27. Bxe4 {[%emt 0:00:29]} dxe4 {[%emt 0:00:44]} 28. d5 {[%emt 0:01:03]} Rac8 {[%emt 0:04:44]} 29. Qd7 {[%emt 0:01:39]} Rcd8 {[%emt 0:03:41]} 30. Nxd8 {[%emt 0:00:14]} Rxd8 {[%emt 0:00:02]} 31. Qc6 {[%emt 0:00:48]} Qe5 {[%emt 0:00:41]} 32. Qxc4 {[%emt 0:05:17]} Rxd5 {[%emt 0:00:23]} 33. b6 {[%emt 0:00:48]} Rc5 {[%emt 0:01:41]} 34. Qa6 {[%emt 0:03:22]} Rb5 {[%emt 0:01:15]} 35. Qc8+ {[%emt 0:03:51]} Kg7 {[%emt 0:00:07]} 36. Qc7 {[%emt 0:00:08]} Qf4 {[%emt 0:04:54]} 37. g3 {[%emt 0:04:53]} Qf3 {[%emt 0:00:53]} 38. Qd8 Qf6 {[%emt 0:00:26]} 39. Qd2 {[%emt 0:07:03]} Qxb6 {[%emt 0:00:00]} 40. Re1 {[%emt 0:00:00]} h6 {[%emt 0:00:22]} 41. Re2 {[%emt 0:00:27]} a4 {[%emt 0:02:35]} 42. Kh2 {[%emt 0:00:53]} Rf5 {[%emt 0:02:10]} 43. Kg2 {[%emt 0:00:13]} Rb5 {[%emt 0:00:42]} 44. c4 {[%emt 0:00:50]} Rb3 {[%emt 0:00:28]} 45. Qd5 {[%emt 0:00:22]} Qf6 {[%emt 0:00:37]} 46. Qd2 {[%emt 0:00:39]} Qf3+ {[%emt 0:00:13]} 47. Kh2 {[%emt 0:00:01]} Rd3 {[%emt 0:00:18]} 48. Qe1 {[%emt 0:00:28]} Rb3 {[%emt 0:00:41]} 49. c5 {[%emt 0:00:24]} Qf6 {[%emt 0:00:45]} 50. Qc1 {[%emt 0:00:54]} Rf3 {[%emt 0:00:59]} 51. Kg2 {[%emt 0:00:28]} Qc6 {[%emt 0:00:16]} 52. Re3 {[%emt 0:00:07]} Rf5 {[%emt 0:00:08]} 53. Qc3+ {[%emt 0:00:15]} Kh7 {[%emt 0:00:35]} 54. Qc4 {[%emt 0:00:29]} Qxc5 {[%emt 0:00:16]} 55. Qxa4 {[%emt 0:00:47]} Qc2 {[%emt 0:00:18]} 56. Qxc2 {[%emt 0:00:02]} 1-0

[Event "FRA-ch Youth U12 2018"]
[Site "Agen"]
[Date "2018.04.20"]
[Round "7"]
[White "Mekhane, Adam"]
[Black "Droin, Augustin"]
[Result "1-0"]
[ECO "B90"]
[WhiteElo "1907"]
[BlackElo "1975"]
[Annotator "NA"]
[PlyCount "91"]
[EventDate "2018.??.??"]
[EventType "swiss"]
[EventCountry "FRA"]
[SourceTitle "playchess.com"]
[Source "ChessBase"]
[SourceQuality "1"]
[TimeControl "5400+30"]

1. e4 {[%emt 0:00:00]} c5 {[%emt 0:00:04]} 2. Nf3 {[%emt 0:00:00]} d6 {[%emt 0:00:05]} 3. d4 {[%emt 0:00:00]} cxd4 {[%emt 0:00:03]} 4. Nxd4 {[%emt 0:00:00]} Nf6 {[%emt 0:00:03]} 5. Nc3 {[%emt 0:00:00]} a6 {[%emt 0:00:02]} 6. Bc4 {[%emt 0:00:00]} Qc7 {[%emt 0:01:03]} 7. Bb3 {[%emt 0:00:31] B90: Sicilian Najdorf: Unusual White 6th moves, 6 Be3 Ng4 and 6 Be3 e5} (7. Qe2 e5 8. Nf5 Be6 9. Bb3 Nbd7 10. Bg5 Rc8 11. O-O-O g6 12. Ne3 Be7 13. Kb1 O-O 14. h4 Qd8 {1-0 (27) Mousavi,S (2456)-Kantans,T (2524) Teheran 2017}) 7... b5 {[%emt 0:00:47]} 8. O-O {[%emt 0:05:05]} e6 {[%emt 0:02:26]} 9. Qe2 {[%emt 0:07:09]} Nc6 $146 {[%emt 0:03:35]} ({Find the theoretical novelty and annotate with similar games:} 9... Be7 10. Kh1 O-O 11. a4 b4 12. Nd1 Nc6 13. c3 bxc3 14. Nxc6 Qxc6 15. Nxc3 Rb8 16. Bc2 {1-0 (30) Saldana Caballe,J (2195)-Albert Magro,C (2170) Tarragona 2002}) 10. Nxc6 {[%emt 0:11:12]} Qxc6 {[%emt 0:00:06]} 11. Nd5 {[%emt 0:00:12]} Be7 {[%emt 0:03:31]} 12. Nxe7 {[%emt 0:04:42]} Kxe7 {[%emt 0:00:35]} 13. Bg5 {[%emt 0:01:32]} Qc5 {[%emt 0:04:14] [#]} 14. Be3 $1 {[%emt 0:17:42]} Qh5 {[%emt 0:04:26]} 15. f3 {[%emt 0:07:52]} Nxe4 $2 {[%emt 0:07:52]} (15... Bb7 $16) 16. g4 {[%emt 0:01:48]} Qh3 {[%emt 0:09:53]} 17. fxe4 {[%emt 0:02:43]} h5 {[%emt 0:00:31]} 18. e5 {[%emt 0:06:53]} dxe5 {[%emt 0:04:34]} 19. Bc5+ {[%emt 0:11:11]} Ke8 {[%emt 0:00:06]} 20. Qxe5 {[%emt 0:06:15]} Qxg4+ {[%emt 0:08:26]} 21. Qg3 {[%emt 0:00:54]} Qxg3+ 22. hxg3 h4 {[%emt 0:03:25]} 23. gxh4 {[%emt 0:04:23]} Rxh4 {[%emt 0:00:07]} 24. Rad1 {[%emt 0:01:41]} a5 {[%emt 0:01:01]} 25. c3 {[%emt 0:04:45]} a4 {[%emt 0:00:05]} 26. Bc2 {[%emt 0:00:14]} Bb7 {[%emt 0:00:03]} 27. Rd2 {[%emt 0:01:13]} Bd5 {[%emt 0:01:36]} 28. Bd3 {[%emt 0:02:09]} Rg4+ {[%emt 0:03:21]} 29. Kf2 {[%emt 0:01:05]} Rg2+ {[%emt 0:00:42]} 30. Ke3 {[%emt 0:00:20]} Rg3+ {[%emt 0:01:14]} 31. Kf4 {[%emt 0:00:29]} Rxd3 {[%emt 0:00:16]} 32. Rxd3 {[%emt 0:00:01]} Bc4 {[%emt 0:00:01]} 33. Rfd1 {[%emt 0:00:05]} Bxd3 {[%emt 0:00:21]} 34. Rxd3 {[%emt 0:00:03]} Rc8 {[%emt 0:00:16]} 35. Bb4 {[%emt 0:00:53]} Rc6 {[%emt 0:10:09]} 36. Rg3 {[%emt 0:01:59]} g6 {[%emt 0:02:16]} 37. Ke5 {[%emt 0:00:35]} Rc4 {[%emt 0:00:14]} 38. Rh3 $18 {[%emt 0:01:07]} Kd7 39. Rh7 {[%emt 0:00:33]} Kc6 {[%emt 0:03:57]} 40. Rxf7 {[%emt 0:00:33]} Rg4 {[%emt 0:00:14]} 41. Rf6 {[%emt 0:00:41]} Rg2 {[%emt 0:00:06]} 42. Rxe6+ {[%emt 0:00:28]} Kb7 {[%emt 0:00:04]} 43. Kd6 {[%emt 0:01:08]} Rxb2 {[%emt 0:00:20]} 44. Re7+ {[%emt 0:00:30]} Kb8 {[%emt 0:03:01]} 45. Kc6 {[%emt 0:00:18]} Rd2 {[%emt 0:00:45]} 46. Re8+ {[%emt 0:00:07]} 1-0

[Event "FRA-ch Youth U12 2018"]
[Site "Agen"]
[Date "2018.04.20"]
[Round "7"]
[White "Zachary, Bastian"]
[Black "Trabet, Mathis"]
[Result "0-1"]
[ECO "A57"]
[WhiteElo "1884"]
[BlackElo "1909"]
[Annotator "NA"]
[PlyCount "71"]
[EventDate "2018.??.??"]
[EventType "swiss"]
[EventCountry "FRA"]
[SourceTitle "playchess.com"]
[Source "ChessBase"]
[SourceQuality "1"]
[TimeControl "5400+30"]

1. d4 {[%emt 0:00:00]} Nf6 {[%emt 0:00:14]} 2. c4 {[%emt 0:00:00]} c5 {[%emt 0:00:20]} 3. d5 {[%emt 0:00:04]} b5 {[%emt 0:00:35]} 4. cxb5 {[%emt 0:00:30]} a6 {[%emt 0:00:23]} 5. e3 {[%emt 0:00:20]} d6 {[%emt 0:08:56]} 6. Nc3 {[%emt 0:01:32]} g6 {[%emt 0:00:47]} 7. Nf3 {[%emt 0:05:48]} Bg7 {[%emt 0:03:50]} 8. Be2 {[%emt 0:02:45]} O-O {[%emt 0:01:24] LiveBook: 12 Games} 9. O-O {[%emt 0:00:32]} axb5 {[%emt 0:06:38]} 10. Bxb5 {[%emt 0:00:41]} Ba6 {[%emt 0:00:34]} 11. Bxa6 {[%emt 0:00:50]} Nxa6 {[%emt 0:00:24]} 12. a3 {[%emt 0:02:13] A58: Benko/Volga Gambit: Lines with 5 bxa6} (12. Nd2 Nd7 13. Nc4 Nb6 14. Qb3 Nb4 15. e4 Nxc4 16. Qxc4 Qa5 17. Bg5 Rfe8 18. Rfc1 Qa6 19. Qxa6 Rxa6 {½-½ (57) Vakhidov,J (2471)-Kovalev,V (2554) Dubai 2014}) 12... Qd7 $146 {[%emt 0:02:45]} ({Find the theoretical novelty and annotate with similar games:} 12... Qb6 13. Rb1 Nd7 14. Bd2 Rfb8 15. b4 cxb4 16. axb4 Nc7 17. e4 Nb5 18. Nxb5 Qxb5 19. Be3 Qc4 {0-1 (41) Sienkiewicz,W (1220)-Pietraszko,J (1605) Wroclaw 2012}) 13. h3 {[%emt 0:04:31]} Rfb8 {[%emt 0:03:30]} 14. e4 {[%emt 0:03:49]} Nc7 {[%emt 0:09:02]} 15. Qc2 {[%emt 0:01:42]} Nb5 {[%emt 0:04:43]} 16. Bd2 {[%emt 0:04:32]} Qc7 {[%emt 0:03:18]} 17. Nxb5 {[%emt 0:01:28]} Rxb5 {[%emt 0:00:11]} 18. Bc3 {[%emt 0:00:10]} Qb7 {[%emt 0:06:38]} 19. Rfe1 {[%emt 0:01:42]} ({White should try} 19. a4 $16 Rb6 20. a5) 19... Nd7 {[%emt 0:02:08]} 20. Ra2 {[%emt 0:06:48]} Bxc3 {[%emt 0:10:42]} 21. Qxc3 {[%emt 0:01:12]} Nb6 $16 {[%emt 0:04:48]} (21... Rb3 $11 {remains equal.} 22. Qc2 Rb8) 22. b3 {[%emt 0:06:19]} Rb8 {[%emt 0:08:23]} 23. Nd2 {[%emt 0:01:51]} Nd7 {[%emt 0:01:12]} 24. f4 {[%emt 0:03:12]} Ra8 {[%emt 0:03:07]} 25. Raa1 {[%emt 0:01:17]} Rba5 {[%emt 0:03:04]} 26. a4 {[%emt 0:02:32]} R5a6 {[%emt 0:01:20]} 27. Rab1 {[%emt 0:08:23]} Rb6 {[%emt 0:00:58]} 28. Qd3 {[%emt 0:00:56]} Rb4 {[%emt 0:00:48]} 29. Qc3 {[%emt 0:02:25]} Rb8 {[%emt 0:02:17]} 30. g3 {[%emt 0:00:41]} Nb6 {[%emt 0:05:03]} 31. Qc2 {[%emt 0:01:31]} Qa7 {[%emt 0:03:08]} 32. Kh1 {[%emt 0:02:34]} Qa6 {[%emt 0:00:02]} 33. Kg1 {[%emt 0:01:50]} c4 {[%emt 0:01:31]} 34. Nxc4 {[%emt 0:02:50]} Nxc4 {[%emt 0:00:12]} 35. bxc4 {[%emt 0:00:46]} Qb6+ {[%emt 0:00:43]} 36. c5 0-1

[Event "FRA-ch Youth U12 2018"]
[Site "Agen"]
[Date "2018.04.20"]
[Round "7"]
[White "Lamaze, Simon"]
[Black "Beurois, Alexandre"]
[Result "0-1"]
[ECO "A06"]
[WhiteElo "1850"]
[BlackElo "1604"]
[Annotator "NA"]
[PlyCount "94"]
[EventDate "2018.??.??"]
[EventType "swiss"]
[EventCountry "FRA"]
[SourceTitle "playchess.com"]
[Source "ChessBase"]
[SourceQuality "1"]
[TimeControl "5400+30"]

1. Nf3 {[%emt 0:00:00]} d5 {[%emt 0:00:17]} 2. d4 {[%emt 0:00:00]} e6 {[%emt 0:00:10]} 3. g3 {[%emt 0:00:00]} c6 {[%emt 0:00:18]} 4. Bg2 {[%emt 0:00:00]} f5 {[%emt 0:00:57]} 5. O-O {[%emt 0:00:05]} Nf6 {[%emt 0:00:12]} 6. b3 {[%emt 0:00:03]} Bd6 {[%emt 0:00:25]} 7. Ba3 {[%emt 0:00:10]} Bxa3 {[%emt 0:03:29]} 8. Nxa3 {[%emt 0:01:00]} O-O {[%emt 0:01:32]} 9. c4 {[%emt 0:01:43]} Nbd7 {[%emt 0:01:40]} 10. Nb1 {[%emt 0:07:37] A94: Classical Dutch: Classical Stonewall: 7 b3 c6 8 Ba3} (10. Nc2 b6 11. Nb4 Bb7 12. Nd3 Rc8 13. Rc1 Qe7 14. e3 c5 15. Nf4 dxc4 16. bxc4 Rfd8 17. Qb3 e5 18. Nd5 Nxd5 19. cxd5 c4 20. Qa4 e4 21. Nd2 a6 {0-1 (43) Alekseev,E (2636)-Rusanov,M (2440) St Petersburg 2016}) 10... Ne4 {[%emt 0:05:25]} 11. Qc2 {[%emt 0:04:13]} Ndf6 {[%emt 0:05:40]} 12. Nc3 {[%emt 0:02:22]} Nxc3 $146 {[%emt 0:01:48]} ({Find the theoretical novelty and annotate with similar games:} 12... Bd7 13. Rad1 Be8 14. Ne5 Nxc3 15. Qxc3 Bh5 16. f3 Nd7 17. Nxd7 Qxd7 18. Rd2 Rad8 {0-1 (44) Andersen,D (1944)-Peschardt,S (2133) Copenhagen 2007}) 13. Qxc3 {[%emt 0:00:37]} Ne4 {[%emt 0:04:28]} 14. Qd3 {[%emt 0:01:58]} Bd7 {[%emt 0:09:40]} 15. Ne5 {[%emt 0:02:05]} Be8 {[%emt 0:04:04]} 16. f3 {[%emt 0:02:17]} Nd6 {[%emt 0:03:45]} 17. e4 {[%emt 0:03:43]} Nf7 {[%emt 0:04:58]} 18. exd5 exd5 {[%emt 0:01:42]} 19. f4 {[%emt 0:04:56]} Qb6 {[%emt 0:05:44]} 20. c5 Qc7 $16 {[%emt 0:01:13]} 21. b4 {[%emt 0:10:01]} a5 {[%emt 0:01:18]} 22. a3 {[%emt 0:03:54]} b6 {[%emt 0:01:36]} 23. Qxf5 {[%emt 0:09:23]} bxc5 {[%emt 0:07:10]} 24. bxc5 {[%emt 0:01:13]} Nxe5 {[%emt 0:01:50]} 25. Qxe5 {[%emt 0:00:24]} Qd7 {[%emt 0:02:18]} 26. f5 {[%emt 0:12:43]} Rf6 {[%emt 0:06:31]} 27. Rab1 {[%emt 0:05:45]} Bh5 {[%emt 0:05:38]} 28. Rb8+ {[%emt 0:09:36]} Rxb8 {[%emt 0:00:33]} 29. Qxb8+ {[%emt 0:00:12]} Rf8 {[%emt 0:03:36]} 30. Qe5 {[%emt 0:01:30]} Rf6 {[%emt 0:01:55]} 31. Bh3 {[%emt 0:01:41]} Qe8 {[%emt 0:09:04]} 32. g4 {[%emt 0:03:23]} h6 {[%emt 0:02:35]} 33. gxh5 {[%emt 0:00:51]} Qxh5 {[%emt 0:00:09]} 34. Bg2 {[%emt 0:03:54]} Qg4 {[%emt 0:00:27]} 35. h3 {[%emt 0:02:02]} Qg5 {[%emt 0:00:41]} 36. Qf4 {[%emt 0:00:52]} Qh5 {[%emt 0:00:21]} 37. Qg4 {[%emt 0:00:36]} Qe8 {[%emt 0:00:15]} 38. Qf3 {[%emt 0:01:15]} Qb8 {[%emt 0:00:44]} 39. Qd3 {[%emt 0:01:38]} Qc8 {[%emt 0:01:08]} 40. Kh1 {[%emt 0:01:38]} Rf7 {[%emt 0:01:10]} 41. f6 {[%emt 0:01:05]} Kh8 {[%emt 0:00:24]} 42. Qg6 {[%emt 0:01:08]} Kg8 {[%emt 0:00:52]} 43. fxg7 {[%emt 0:00:59]} Rxg7 {[%emt 0:00:38]} 44. Qxh6 {[%emt 0:00:17]} Qb8 {[%emt 0:01:17]} 45. Rg1 {[%emt 0:00:33]} Qd8 {[%emt 0:01:52]} 46. Bxd5+ {[%emt 0:00:14]} Qxd5+ {[%emt 0:00:18]} 47. Rg2 Qxg2# 0-1

[Event "FRA-ch Youth U12 2018"]
[Site "Agen"]
[Date "2018.04.20"]
[Round "7"]
[White "Cornileau, Juliette"]
[Black "Diez, Agathe"]
[Result "1-0"]
[ECO "C47"]
[WhiteElo "1654"]
[BlackElo "1373"]
[Annotator "NA"]
[PlyCount "91"]
[EventDate "2018.??.??"]
[EventType "swiss"]
[EventCountry "FRA"]
[SourceTitle "playchess.com"]
[Source "ChessBase"]
[SourceQuality "1"]
[TimeControl "5400+30"]

1. e4 {[%emt 0:00:00]} e5 {[%emt 0:00:08]} 2. Nf3 {[%emt 0:00:00]} Nc6 {[%emt 0:00:07]} 3. Nc3 {[%emt 0:00:00]} Nf6 {[%emt 0:00:12]} 4. d4 {[%emt 0:00:07]} exd4 {[%emt 0:00:14]} 5. Nxd4 {[%emt 0:00:09]} Bb4 {[%emt 0:00:16]} 6. Nxc6 {[%emt 0:00:31]} bxc6 {[%emt 0:00:11]} 7. Bd3 {[%emt 0:00:12]} d5 {[%emt 0:00:39]} 8. exd5 {[%emt 0:00:14]} cxd5 {[%emt 0:00:09]} 9. O-O {[%emt 0:00:16]} O-O {[%emt 0:00:14]} 10. Bg5 {[%emt 0:00:42]} c6 {[%emt 0:00:27]} 11. Qf3 {[%emt 0:01:44]} Be7 {[%emt 0:00:30]} 12. Rfe1 {[%emt 0:01:50]} h6 {[%emt 0:01:16]} 13. Bf4 {[%emt 0:01:03]} Bd6 {[%emt 0:03:09]} 14. h3 {[%emt 0:05:24]} Rb8 {[%emt 0:03:14]} 15. b3 {[%emt 0:01:40]} Be6 {[%emt 0:03:13]} 16. Ne2 {[%emt 0:03:15]} c5 {[%emt 0:08:39]} 17. Bxd6 {[%emt 0:02:40]} Qxd6 {[%emt 0:00:12]} 18. Rad1 {[%emt 0:00:30]} Rfe8 {[%emt 0:14:01]} 19. Nf4 {[%emt 0:02:18]} Qb6 {[%emt 0:04:06]} 20. Qg3 {[%emt 0:06:54]} Rbd8 {[%emt 0:04:23]} 21. Nxe6 {[%emt 0:08:21]} Rxe6 {[%emt 0:03:27]} 22. Rxe6 {[%emt 0:03:31]} Qxe6 {[%emt 0:01:46]} 23. c4 {[%emt 0:06:37]} dxc4 {[%emt 0:03:49]} 24. Bh7+ {[%emt 0:01:03]} Kxh7 {[%emt 0:00:11]} 25. Rxd8 {[%emt 0:00:25]} cxb3 {[%emt 0:01:21]} 26. axb3 {[%emt 0:05:40]} Qe1+ {[%emt 0:01:59]} 27. Kh2 {[%emt 0:00:09]} Ne4 {[%emt 0:04:39]} 28. Qd3 {[%emt 0:01:47]} f5 {[%emt 0:01:26]} 29. Qf3 {[%emt 0:07:09]} Qxf2 {[%emt 0:03:38]} 30. Qxf2 {[%emt 0:00:31]} Nxf2 {[%emt 0:00:10]} 31. Rd5 {[%emt 0:01:43]} Ne4 {[%emt 0:03:08]} 32. Rxf5 {[%emt 0:00:56]} a5 {[%emt 0:02:36]} 33. Re5 {[%emt 0:01:54]} Nd2 {[%emt 0:00:25]} 34. Rxc5 {[%emt 0:00:33]} Nxb3 {[%emt 0:00:10]} 35. Rb5 {[%emt 0:00:30]} a4 {[%emt 0:00:20]} 36. Rb4 {[%emt 0:00:17]} Nc5 {[%emt 0:01:05]} 37. Rc4 {[%emt 0:00:17]} Ne6 {[%emt 0:00:18]} 38. Rxa4 {[%emt 0:00:08]} Ng5 {[%emt 0:00:31]} 39. Kg3 {[%emt 0:01:19]} Kg6 {[%emt 0:01:32]} 40. Kf4 {[%emt 0:01:52]} Kh5 {[%emt 0:03:08]} 41. Kf5 {[%emt 0:01:45]} g6+ {[%emt 0:01:20]} 42. Kf6 {[%emt 0:02:03]} Nh7+ {[%emt 0:01:46]} 43. Kg7 {[%emt 0:00:36]} Ng5 {[%emt 0:00:15]} 44. Ra6 {[%emt 0:01:35]} Kh4 {[%emt 0:02:11]} 45. Kxh6 {[%emt 0:01:25]} Kg3 {[%emt 0:05:55]} 46. Kxg5 {[%emt 0:00:29]} 1-0

[Event "FRA-ch Youth U12 2018"]
[Site "Agen"]
[Date "2018.04.20"]
[Round "7"]
[White "Costa, My-Lan"]
[Black "Natchkebia, Valeria"]
[Result "1-0"]
[ECO "C46"]
[WhiteElo "1360"]
[BlackElo "1300"]
[Annotator "NA"]
[PlyCount "66"]
[EventDate "2018.??.??"]
[EventType "swiss"]
[EventCountry "FRA"]
[SourceTitle "playchess.com"]
[Source "ChessBase"]
[SourceQuality "1"]
[TimeControl "5400+30"]

1. e4 {[%emt 0:00:00]} e5 {[%emt 0:00:01]} 2. Nf3 {[%emt 0:00:00]} Nc6 {[%emt 0:00:06]} 3. Nc3 {[%emt 0:00:00]} Be7 {[%emt 0:00:38]} 4. Be2 {[%emt 0:01:37]} Nf6 {[%emt 0:00:26]} 5. d4 {[%emt 0:00:59]} d6 {[%emt 0:01:18]} 6. dxe5 {[%emt 0:02:07]} dxe5 {[%emt 0:00:10]} 7. O-O {[%emt 0:00:36]} O-O {[%emt 0:00:25]} 8. Bg5 {[%emt 0:07:47]} h6 {[%emt 0:01:51]} 9. Bh4 {[%emt 0:00:42]} Be6 {[%emt 0:02:33]} 10. Bg3 {[%emt 0:01:47]} Qd6 {[%emt 0:05:26]} 11. Bb5 {[%emt 0:38:59]} Rad8 {[%emt 0:04:15]} 12. Bxc6 {[%emt 0:03:14]} Qxc6 {[%emt 0:01:20]} 13. Nxe5 {[%emt 0:07:07]} Rxd1 {[%emt 0:02:17]} 14. Nxc6 {[%emt 0:00:13]} Rxf1+ {[%emt 0:00:09]} 15. Rxf1 {[%emt 0:00:09]} bxc6 {[%emt 0:00:08]} 16. Bxc7 {[%emt 0:00:40]} Bb4 {[%emt 0:00:52]} 17. e5 {[%emt 0:01:13]} Bxc3 {[%emt 0:01:07]} 18. exf6 {[%emt 0:01:33]} Bxf6 {[%emt 0:00:16]} 19. b3 {[%emt 0:00:41]} Re8 {[%emt 0:01:10]} 20. h3 {[%emt 0:02:24]} Bf5 {[%emt 0:00:43]} 21. Bg3 {[%emt 0:03:56]} Bxc2 {[%emt 0:00:58]} 22. Rc1 {[%emt 0:01:11]} Be4 {[%emt 0:01:21]} 23. Re1 {[%emt 0:00:52]} Re6 {[%emt 0:00:40]} 24. Bb8 {[%emt 0:02:42]} Bd5 {[%emt 0:01:12]} 25. Rb1 {[%emt 0:04:23]} a6 {[%emt 0:00:32]} 26. Bf4 {[%emt 0:00:44]} Re2 {[%emt 0:00:35]} 27. a4 {[%emt 0:00:48]} Be5 {[%emt 0:00:33]} 28. Bxe5 {[%emt 0:01:37]} Rxe5 {[%emt 0:00:08]} 29. b4 {[%emt 0:00:38]} Bc4 {[%emt 0:02:06]} 30. Rc1 {[%emt 0:00:41]} Bb3 {[%emt 0:00:26]} 31. Rxc6 {[%emt 0:00:35]} a5 {[%emt 0:01:13]} 32. bxa5 {[%emt 0:02:37]} Rb5 33. a6 {[%emt 0:00:46]} Ra5 {[%emt 0:00:55]} 1-0

[Event "FRA-ch Youth U12 2018"]
[Site "Agen"]
[Date "2018.04.20"]
[Round "7"]
[White "Courjal, Juliette"]
[Black "Pentcheff, Laura"]
[Result "0-1"]
[ECO "B09"]
[WhiteElo "1221"]
[BlackElo "1512"]
[Annotator "NA"]
[PlyCount "100"]
[EventDate "2018.??.??"]
[EventType "swiss"]
[EventCountry "FRA"]
[SourceTitle "playchess.com"]
[Source "ChessBase"]
[SourceQuality "1"]
[TimeControl "5400+30"]

1. e4 {[%emt 0:00:00]} d6 {[%emt 0:00:06]} 2. d4 {[%emt 0:00:00]} Nf6 {[%emt 0:00:05]} 3. Nc3 {[%emt 0:00:00]} g6 {[%emt 0:00:06]} 4. f4 {[%emt 0:00:14]} Bg7 {[%emt 0:00:13]} 5. e5 {[%emt 0:00:22]} dxe5 {[%emt 0:00:17]} 6. fxe5 {[%emt 0:00:15]} Nd5 {[%emt 0:00:35]} 7. Bc4 {[%emt 0:00:20]} c6 {[%emt 0:00:19]} 8. Nf3 {[%emt 0:02:04]} O-O {[%emt 0:00:46]} 9. O-O {[%emt 0:02:22]} a6 {[%emt 0:01:34]} 10. Bg5 {[%emt 0:05:49]} b5 {[%emt 0:01:34]} 11. Bb3 {[%emt 0:01:27]} b4 {[%emt 0:00:50]} 12. Nxd5 {[%emt 0:03:41]} cxd5 {[%emt 0:00:15]} 13. Qd2 {[%emt 0:00:31]} a5 {[%emt 0:00:49]} 14. a3 {[%emt 0:01:14]} a4 {[%emt 0:01:55]} 15. Ba2 {[%emt 0:02:10]} bxa3 {[%emt 0:00:35]} 16. bxa3 {[%emt 0:00:57]} Nc6 {[%emt 0:09:07]} 17. c3 {[%emt 0:03:21]} Be6 {[%emt 0:04:19]} 18. Bh6 {[%emt 0:02:44]} Qb6 {[%emt 0:01:53]} 19. Rab1 {[%emt 0:01:12]} Qa7 {[%emt 0:01:06]} 20. h4 Rfc8 21. h5 {[%emt 0:03:43]} Nxe5 {[%emt 0:06:49]} 22. Kh1 {[%emt 0:12:15]} Ng4 {[%emt 0:03:31]} 23. Bxg7 {[%emt 0:02:27]} Kxg7 {[%emt 0:02:00]} 24. Qf4 {[%emt 0:01:05]} Qc7 {[%emt 0:03:27]} 25. Qxc7 {[%emt 0:07:21]} Rxc7 {[%emt 0:00:12]} 26. hxg6 {[%emt 0:00:16]} hxg6 {[%emt 0:00:10]} 27. Rbc1 {[%emt 0:01:46]} Rac8 {[%emt 0:03:39]} 28. c4 {[%emt 0:03:19]} dxc4 {[%emt 0:02:00]} 29. Ng5 {[%emt 0:01:47]} Bd5 {[%emt 0:01:56]} 30. Rce1 {[%emt 0:08:03]} Rb8 {[%emt 0:05:31]} 31. Rf4 {[%emt 0:04:14]} Nf6 {[%emt 0:03:07]} 32. Rf2 {[%emt 0:02:31]} Ng4 {[%emt 0:00:47]} 33. Rf4 {[%emt 0:00:13]} Rb2 {[%emt 0:00:30]} 34. Rxg4 {[%emt 0:01:25]} Rxa2 {[%emt 0:00:12]} 35. Re5 {[%emt 0:01:07]} Be6 {[%emt 0:07:53]} 36. Nxe6+ {[%emt 0:06:26]} fxe6 {[%emt 0:00:25]} 37. Rxe6 {[%emt 0:01:34]} Ra1+ {[%emt 0:02:32]} 38. Kh2 {[%emt 0:00:11]} c3 {[%emt 0:00:14]} 39. Rexg6+ {[%emt 0:03:10]} Kf7 {[%emt 0:00:33]} 40. Rg7+ {[%emt 0:00:55]} Ke8 {[%emt 0:00:09]} 41. Rg8+ {[%emt 0:01:33]} Kd7 {[%emt 0:00:54]} 42. R4g5 {[%emt 0:00:51]} c2 {[%emt 0:01:13]} 43. Rd5+ {[%emt 0:00:13]} Kc6 {[%emt 0:01:13]} 44. Rc5+ {[%emt 0:00:17]} Kb7 {[%emt 0:00:27]} 45. Rb5+ {[%emt 0:00:42]} Ka6 {[%emt 0:00:06]} 46. Rc5 {[%emt 0:01:26]} Rxc5 {[%emt 0:02:28]} 47. dxc5 {[%emt 0:00:02]} c1=Q {[%emt 0:00:19]} 48. Ra8+ {[%emt 0:00:53]} Kb7 {[%emt 0:00:25]} 49. Rxa4 {[%emt 0:00:10]} Qh6+ {[%emt 0:02:03]} 50. Rh4 {[%emt 0:00:15]} Qxh4# {[%emt 0:00:16]} 0-1